bitfinex-derivatives/quotes_SOLF0:USTF0_20250109
["timestamp","ask_amount","ask_price","bid_price","bid_amount"]
[1736456909663,2.6844,186.29,186.24,2.6849]
[1736456909865,2.6846,186.27,186.22,2.6852]
[1736456910063,89.41230494,186.31,186.18,4.849]
[1736456910266,20.02047094,186.3,186.18,1.6199]
[1736456910467,20.02047094,186.3,186.2,2.6856]
[1736456910656,20.02047094,186.27,186.11,20.02047094]
[1736456910860,20.02047094,186.24,186.09,5.7]
[1736456911167,2.6854,186.22,186.17,2.686]
[1736456911868,2.6855,186.21,186.17,2.686]
[1736456912260,3.0582,186.23,186.18,2.6859]
[1736456913061,5.7435,186.23,186.18,2.6859]
[1736456913266,3.0582,186.23,186.19,2.6857]
[1736456913573,89.41230494,186.25,186.17,20.02047094]
[1736456913869,149.0205082,186.27,186.17,20.02047094]
[1736456913870,89.41230494,186.27,186.17,20.02047094]
[1736456914066,89.41230494,186.27,186.18,1.5934]
[1736456914470,89.41230494,186.27,186.24,2.6849]
[1736456914666,186.2756353,186.3,186.24,2.6849]
[1736456914667,89.41230494,186.3,186.24,2.6849]
[1736456915568,2.6844,186.29,186.23,2.6852]
[1736456917971,2.6845,186.28,186.23,2.6852]
[1736456922365,2.6849,186.26,186.21,2.6855]
[1736456922569,20.02047094,186.25,186.08,5.68]
[1736456922869,3.1047,186.25,186.12,20.02047094]
[1736456923069,1.5735,186.25,186.2,2.6856]
[1736456923263,9.36109135,186.29,186.18,20.02047094]
[1736456923465,9.36109135,186.29,186.26,2.6848]
[1736456923772,19.65440139,186.29,186.26,2.6848]
[1736456924169,19.65440139,186.29,186.25,2.6849]
[1736456924669,2.6841,186.31,186.25,2.6849]
[1736456925668,2.6842,186.3,186.25,2.6849]
[1736456926863,1.5212,186.33,186.24,20.02047094]
[1736456927066,98.78761405,186.34,186.24,20.02047094]
[1736456927265,89.41230494,186.34,186.24,20.02047094]
[1736456927969,92.09600494,186.34,186.27,2.6846]
[1736456928364,2.6837,186.34,186.27,2.6846]
[1736456928572,2.6837,186.34,186.28,2.6844]
[1736456929674,2.6841,186.31,186.21,20.02047094]
[1736456929968,9.36663401,186.35,186.19,1.6449]
[1736456930572,20.02047094,186.33,186.19,1.6449]
[1736456930768,29.38710495,186.33,186.19,1.6449]
[1736456930971,20.02047094,186.3,186.19,1.6449]
[1736456931170,3.0718,186.29,186.17,1.6325]
[1736456931568,1.5653,186.28,186.19,2.6858]
[1736456932377,1.5653,186.28,186.12,25.70047094]
[1736456932571,20.02047094,186.27,186.12,25.70047094]
[1736456932974,2.6852,186.24,186.16,2.6861]
[1736456933165,2.6852,186.24,186.12,25.70047094]
[1736456933571,2.6849,186.26,186.19,2.6856]
[1736456933779,20.02047094,186.27,186.19,2.6856]
[1736456934481,2.6851,186.24,186.19,2.6856]
[1736456934673,1.5653,186.28,186.2,2.6855]
[1736456934871,1.5653,186.28,186.15,20.02047094]
[1736456935068,1.5653,186.28,186.18,20.02047094]
[1736456935371,89.41230494,186.3,186.21,20.02047094]
[1736456935576,89.41230494,186.3,186.22,1.6075]
[1736456935772,89.41230494,186.3,186.27,2.6846]
[1736456935968,89.41230494,186.35,186.27,2.6846]
[1736456936568,9.38303416,186.34,186.27,2.6846]
[1736456937072,29.04773989,186.35,186.22,1.6075]
[1736456937680,29.04773989,186.35,186.24,20.02047094]
[1736456938073,19.66470573,186.35,186.24,20.02047094]
[1736456938278,10.5741,186.37,186.24,20.02047094]
[1736456938774,20.02047094,186.36,186.26,2.6846]
[1736456939176,19.95762938,186.37,186.22,4.8449]
[1736456939377,2.6838,186.33,186.27,2.6845]
[1736456939581,14.27762938,186.37,186.24,20.02047094]
[1736456939784,103.68993432,186.37,186.24,20.02047094]
[1736456940380,2.6835,186.35,186.3,2.6842]
[1736456940581,94.30640494,186.37,186.24,20.02047094]
[1736456940881,4.8941,186.37,186.24,20.02047094]
[1736456941679,4.8941,186.37,186.26,2.6848]
[1736456941680,2.6841,186.31,186.26,2.6848]
[1736456941874,20.02047094,186.35,186.22,1.6075]
[1736456942485,2.6845,186.29,186.24,2.6851]
[1736456942678,20.02047094,186.32,186.18,20.02047094]
[1736456942878,2.685,186.25,186.19,2.6858]
[1736456943079,20.02047094,186.29,186.17,4.6039]
[1736456943276,3.1828,186.28,186.17,2.9954]
[1736456943482,4.8107,186.28,186.17,2.9954]
[1736456945086,4.8107,186.28,186.18,20.02047094]
[1736456945383,15.07612023,186.31,186.18,20.02047094]
[1736456945584,5.68,186.31,186.18,21.60357094]
[1736456945786,2.6843,186.3,186.18,21.60357094]
[1736456945986,5.68,186.31,186.18,21.60357094]
[1736456946685,1.5162,186.3,186.17,2.9954]
[1736456946885,1.5162,186.3,186.2,2.6856]
[1736456947283,2.6849,186.26,186.18,2.6858]
[1736456947485,3.1958,186.25,186.16,5.74449005]
[1736456949181,9.39553827,186.27,186.16,5.74449005]
[1736456949584,9.39553827,186.27,186.18,20.02047094]
[1736456949783,19.67407786,186.28,186.18,20.02047094]
[1736456949985,4.6948,186.3,186.18,20.02047094]
[1736456950382,2.6844,186.29,186.18,20.02047094]
[1736456950986,2.6844,186.29,186.24,2.6849]
[1736456951380,2.6844,186.29,186.18,20.02047094]
[1736456951587,4.6948,186.3,186.18,20.02047094]
[1736456951784,2.6845,186.28,186.23,2.6851]
[1736456952181,4.6948,186.3,186.23,2.6851]
[1736456952586,24.71527094,186.3,186.17,1.6364]
[1736456952989,2.6854,186.22,186.17,2.686]
[1736456953185,20.02047094,186.27,186.16,5.74449005]
[1736456953591,2.6856,186.21,186.16,8.43069005]
[1736456953989,2.6856,186.21,186.16,5.74449005]
[1736456954692,2.6856,186.21,186.17,2.686]
[1736456955482,2.6854,186.22,186.18,2.6859]
[1736456955688,5.68,186.23,186.16,5.74449005]
[1736456956786,5.68,186.23,186.22,2.6854]
[1736456956988,9.39916532,186.26,186.22,2.6854]
[1736456957195,9.39916532,186.28,186.18,20.02047094]
[1736456957388,9.39916532,186.28,186.24,2.685]
[1736456957588,2.6845,186.29,186.24,2.685]
[1736456957793,10.3748,186.3,186.24,2.685]
[1736456957991,2.6845,186.28,186.24,2.685]
[1736456959090,10.3748,186.3,186.17,1.5539]
[1736456959091,2.6843,186.29,186.26,2.6848]
[1736456959292,89.41230494,186.33,186.24,20.02047094]
[1736456959683,92.09610494,186.33,186.29,2.6843]
[1736456960095,89.41230494,186.33,186.24,20.02047094]
[1736456960289,2.6837,186.34,186.3,2.6841]
[1736456962587,3.1822,186.36,186.22,1.4847]
[1736456963295,3.1822,186.36,186.26,2.6846]
[1736456963589,92.59450494,186.36,186.26,2.6846]
[1736456963991,9.39804957,186.35,186.22,1.4847]
[1736456964193,9.39804957,186.35,186.28,2.6845]
[1736456964386,15.07804957,186.35,186.22,1.4847]
[1736456964586,2.6839,186.33,186.22,1.4847]
[1736456964791,15.07804957,186.35,186.22,1.4847]
[1736456964992,2.6838,186.33,186.22,1.4847]
[1736456965398,15.07804957,186.35,186.22,1.4847]
[1736456965604,5.68,186.35,186.22,1.4847]
[1736456966398,2.6838,186.33,186.29,2.6842]
[1736456966593,5.68,186.35,186.22,1.4847]
[1736456966793,2.6836,186.34,186.29,2.6842]
[1736456966998,9.39804957,186.37,186.22,1.4847]
[1736456966999,9.39804957,186.37,186.27,20.02047094]
[1736456967198,12.08134957,186.37,186.33,2.6838]
[1736456967497,2.6833,186.37,186.27,20.02047094]
[1736456967705,2.6833,186.37,186.32,2.6838]
[1736456971604,2.6833,186.37,186.27,20.02047094]
[1736456971801,2.6833,186.37,186.33,2.6838]
[1736456974101,20.02047094,186.38,186.24,20.02047094]
[1736456974409,20.02047094,186.35,186.22,1.4847]
[1736456974605,20.02047094,186.35,186.18,21.62127094]
[1736456974801,20.02047094,186.35,186.18,23.20017094]
[1736456975895,20.02047094,186.32,186.18,3.1797]
[1736456976098,10.3751,186.31,186.18,3.1797]
[1736456976310,2.6848,186.26,186.22,2.6853]
[1736456976507,2.6848,186.26,186.18,3.1797]
[1736456976904,20.02047094,186.29,186.16,5.74449005]
[1736456977099,20.02047094,186.29,186.12,20.02047094]
[1736456977307,20.02047094,186.26,186.09,20.02047094]
[1736456977507,2.6855,186.21,186.14,2.6865]
[1736456977704,5.66,186.22,186.14,2.6865]
[1736456978109,8.3454,186.22,186.17,2.6861]
[1736456978305,5.66,186.22,186.17,2.6861]
[1736456979115,5.66,186.22,186.18,2.6859]
[1736456980212,5.66,186.22,186.21,2.6855]
[1736456980618,2.6849,186.26,186.2,2.6855]
[1736456981304,2.6851,186.24,186.18,2.6858]
[1736456981509,20.02047094,186.26,186.13,4.807]
[1736456981811,2.6855,186.21,186.16,2.6861]
[1736456983419,2.6855,186.21,186.13,1.5742]
[1736456983619,2.6855,186.21,186.17,2.6861]
[1736456984918,20.02047094,186.29,186.21,2.6855]
[1736456985114,15.03344203,186.28,186.21,2.6855]
[1736456985320,2.6849,186.26,186.15,20.02047094]
[1736456985722,2.6849,186.25,186.15,20.02047094]
[1736456986118,2.6849,186.25,186.2,2.6855]
[1736456986518,25.68047094,186.29,186.13,1.5742]
[1736456986719,20.02047094,186.26,186.13,1.5742]
[1736456987017,20.02047094,186.26,186.16,2.6862]
[1736456987220,20.02047094,186.26,186.13,1.5742]
[1736456987725,9.37344203,186.28,186.13,1.5742]
[1736456988022,9.37344203,186.28,186.15,20.02047094]
[1736456988219,9.37344203,186.28,186.18,20.02047094]
[1736456988422,95.07230494,186.3,186.22,2.6853]
[1736456988721,5.66,186.3,186.22,2.6853]
[1736456989221,2.6848,186.27,186.22,2.6853]
[1736456989421,5.66,186.3,186.18,20.02047094]
[1736456989624,5.66,186.3,186.21,2.6854]
[1736456990121,5.66,186.3,186.19,2.6857]
[1736456990319,5.66,186.3,186.15,20.02047094]
[1736456990821,20.02047094,186.26,186.13,1.5742]
[1736456991023,20.02047094,186.26,186.09,20.02047094]
[1736456991325,20.02047094,186.26,186.14,2.6864]
[1736456991524,20.02047094,186.26,186.09,20.02047094]
[1736456991824,2.6859,186.19,186.15,2.6863]
[1736456992027,5.66,186.22,186.09,20.02047094]
[1736456992219,3.1182,186.21,186.09,20.02047094]
[1736456992620,2.686,186.18,186.09,20.02047094]
[1736456993424,3.1182,186.21,186.12,20.02047094]
[1736456993632,5.66,186.22,186.12,20.02047094]
[1736456993826,5.66,186.22,186.15,2.6864]
[1736456994029,5.66,186.22,186.12,20.02047094]
[1736456994225,5.66,186.22,186.13,1.5073]
[1736456994425,8.3454,186.22,186.17,2.686]
[1736456994820,5.66,186.22,186.17,2.686]
[1736456995226,2.6856,186.21,186.17,2.686]
[1736456995428,5.66,186.22,186.16,2.6862]
[1736456995826,2.6857,186.2,186.16,2.6862]
[1736456996730,2.6858,186.19,186.15,2.6863]
[1736456996926,5.66,186.22,186.09,20.02047094]
[1736456997334,2.686,186.18,186.14,2.6864]
[1736456997527,5.66,186.22,186.09,20.02047094]
[1736456998434,2.6858,186.19,186.09,20.02047094]
[1736456999030,2.6858,186.19,186.14,2.6864]
[1736456999530,2.6858,186.19,186.09,20.02047094]
[1736456999531,2.6858,186.19,186.15,2.6863]
[1736457000535,2.6852,186.24,186.2,2.6856]
[1736457000834,3.0707,186.27,186.17,20.02047094]
[1736457001535,2.6848,186.26,186.17,20.02047094]
[1736457001834,3.0707,186.27,186.17,20.02047094]
[1736457002034,5.7553,186.27,186.23,2.6851]
[1736457003931,9.35421603,186.34,186.2,20.02047094]
[1736457004134,1.6197,186.33,186.23,20.02047094]
[1736457004337,1.6197,186.33,186.26,20.02047094]
[1736457004539,10.91131603,186.36,186.26,20.02047094]
[1736457004833,1.5571,186.36,186.26,20.02047094]
[1736457005037,2.6835,186.35,186.29,2.6843]
[1736457005734,2.6836,186.34,186.29,2.6843]
[1736457005934,1.5571,186.36,186.3,2.6841]
[1736457006134,3.1079,186.38,186.26,20.02047094]
[1736457006335,2.6833,186.37,186.26,20.02047094]
[1736457006536,3.1079,186.38,186.26,20.02047094]
[1736457006838,3.1079,186.38,186.31,2.6839]
[1736457007336,2.6833,186.36,186.31,2.6839]
[1736457007734,3.1079,186.38,186.31,2.6839]
[1736457008034,2.6834,186.35,186.31,2.6839]
[1736457008538,3.1079,186.38,186.27,1.5443]
[1736457008738,3.1079,186.38,186.26,20.02047094]
[1736457008939,3.1079,186.38,186.23,20.02047094]
[1736457009234,3.1079,186.38,186.27,2.6844]
[1736457009938,20.02047094,186.37,186.26,2.6846]
[1736457010139,2.6844,186.27,186.21,1.5543]
[1736457010339,5.66,186.31,186.19,3.1938]
[1736457010531,4.7978,186.3,186.19,3.1938]
[1736457011638,4.7978,186.3,186.2,2.6854]
[1736457011940,4.7978,186.3,186.16,1.5543]
[1736457012639,2.6846,186.26,186.22,2.6851]
[1736457013637,4.7978,186.3,186.17,20.02047094]
[1736457014143,2.6846,186.26,186.22,2.6851]
[1736457015644,2.6848,186.25,186.21,2.6853]
[1736457015845,4.7978,186.3,186.21,2.6853]
[1736457016047,4.7978,186.3,186.16,1.5543]
[1736457016245,20.02047094,186.28,186.15,5.74517737]
[1736457016845,20.02047094,186.25,186.15,5.74517737]
[1736457017046,20.02047094,186.25,186.09,4.6415]
[1736457017343,20.02047094,186.22,186.09,4.6415]
[1736457017545,10.2791,186.21,186.09,4.6415]
[1736457018741,10.2791,186.21,186.09,3.0969]
[1736457019248,2.6862,186.16,186.09,3.0969]
[1736457019543,10.2791,186.21,186.09,3.0969]
[1736457020643,2.6863,186.15,186.09,3.0969]
[1736457020948,10.2791,186.21,186.1,2.6869]
[1736457021140,10.2791,186.21,186.09,3.0969]
[1736457021339,20.02047094,186.19,186.04,1.5214]
[1736457021945,20.02047094,186.16,186.04,1.5214]
[1736457022144,9.37685799,186.2,186.04,1.5214]
[1736457022345,5.66,186.19,186.05,20.02047094]
[1736457022545,5.66,186.19,186.08,2.6873]
[1736457023144,2.6867,186.13,186.08,2.6873]
[1736457023643,2.6869,186.11,186.07,2.6874]
[1736457023845,5.66,186.19,186.05,20.02047094]
[1736457024040,2.6865,186.14,186.05,20.02047094]
[1736457024245,5.66,186.19,186.09,2.687]
[1736457024445,5.66,186.19,186.05,21.50977094]
[1736457024747,2.6867,186.13,186.08,2.6873]
[1736457024944,5.66,186.19,186.05,21.50977094]
[1736457025152,5.66,186.19,186.06,2.6875]
[1736457025348,20.02047094,186.18,186.06,2.6875]
[1736457025545,20.02047094,186.18,186.02,20.02047094]
[1736457025746,5.66,186.19,186.03,2.688]
[1736457025747,2.6874,186.08,186.03,2.688]
[1736457026247,2.6874,186.08,186.02,20.02047094]
[1736457026448,2.6874,186.08,186.04,2.6878]
[1736457026645,2.6877,186.06,185.99,20.02047094]
[1736457027847,2.6877,186.06,186.01,2.6883]
[1736457028048,2.6877,186.06,185.99,20.02047094]
[1736457028346,5.66,186.11,186.04,2.6877]
[1736457028542,5.66,186.11,186.02,20.02047094]
[1736457029049,2.6873,186.09,186.04,2.6879]
[1736457029649,5.66,186.11,186.02,20.02047094]
[1736457029850,2.6875,186.07,186.03,2.688]
[1736457030044,20.02047094,186.18,186.05,20.02047094]
[1736457030244,2.6867,186.13,186.08,22.70767094]
[1736457030449,4.6191,186.21,186.08,20.02047094]
[1736457030650,4.6191,186.21,186.11,20.02047094]
[1736457031352,4.6191,186.21,186.14,2.6863]
[1736457031353,2.6859,186.18,186.14,2.6863]
[1736457031853,5.66,186.23,186.11,20.02047094]
[1736457032149,5.66,186.25,186.14,20.02047094]
[1736457032453,5.66,186.25,186.11,20.02047094]
[1736457032854,2.686,186.18,186.13,2.6866]
[1736457033150,5.66,186.25,186.11,20.02047094]
[1736457034050,2.6862,186.16,186.11,22.70717094]
[1736457034250,5.66,186.25,186.11,20.02047094]
[1736457034645,2.686,186.17,186.11,20.02047094]
[1736457035147,25.68047094,186.24,186.11,20.02047094]
[1736457036354,2.6861,186.17,186.08,20.02047094]
[1736457036549,25.68047094,186.24,186.08,20.02047094]
[1736457036751,2.687,186.11,186.07,2.6874]
[1736457037055,5.66,186.16,186.02,20.02047094]
[1736457037252,30.26327094,186.15,186.01,1.5849]
[1736457037453,2.6873,186.09,186.01,1.5849]
[1736457039258,2.6867,186.13,186.02,20.02047094]
[1736457039454,5.66,186.15,186.05,20.02047094]
[1736457040160,1.6196,186.2,186.08,20.02047094]
[1736457040354,5.66,186.19,186.08,20.02047094]
[1736457040555,2.6863,186.16,186.08,20.02047094]
[1736457041161,2.6863,186.16,186.11,2.6868]
[1736457044858,5.66,186.19,186.1,2.6869]
[1736457045060,5.66,186.19,186.03,20.02047094]
[1736457045259,20.02047094,186.18,186.01,1.5849]
[1736457045567,20.02047094,186.15,186.01,1.5849]
[1736457046065,2.6871,186.1,186.06,2.6876]
[1736457046264,2.6871,186.1,186.01,1.5849]
[1736457046265,5.66,186.19,186.03,20.02047094]
[1736457046455,5.66,186.19,186.06,20.02047094]
[1736457046859,2.6866,186.13,186.09,2.6872]
[1736457048660,2.6866,186.13,186.1,2.687]
[1736457048865,2.6866,186.13,186.06,20.02047094]
[1736457049367,2.6866,186.13,186.09,2.6871]
[1736457051470,2.6866,186.13,186.03,20.02047094]
[1736457051659,109.05239533,186.17,186.06,20.02047094]
[1736457051868,89.41230494,186.16,186.09,20.02047094]
[1736457052167,89.41230494,186.16,186.14,2.6864]
[1736457052564,89.41230494,186.17,186.14,2.6864]
[1736457052767,92.09830494,186.17,186.09,20.02047094]
[1736457052965,89.41230494,186.17,186.13,2.6865]
[1736457053465,89.41230494,186.18,186.13,2.6865]
[1736457053968,2.6862,186.16,186.13,2.6865]
[1736457054670,92.09850494,186.16,186.13,2.6865]
[1736457055270,2.6862,186.16,186.13,2.6865]
[1736457055467,92.09830494,186.17,186.14,2.6863]
[1736457055972,89.41230494,186.17,186.16,2.6862]
[1736457056371,89.41230494,186.17,186.09,21.55057094]
[1736457056769,89.41230494,186.18,186.09,21.55057094]
[1736457057073,89.41230494,186.18,186.12,20.02047094]
[1736457057573,78.06630494,186.18,186.17,2.686]
[1736457057777,61.87556693,186.2,186.15,20.02047094]
[1736457057973,61.87556693,186.2,186.19,20.02047094]
[1736457058169,53.65706693,186.2,186.19,22.70617094]
[1736457058674,45.28276693,186.2,186.19,22.70617094]
[1736457058874,26.7991,186.6,186.19,20.02047094]
[1736457058875,1.5422,186.32,186.19,20.02047094]
[1736457059071,1.5422,186.32,186.22,20.02047094]
[1736457059570,1.5422,186.32,186.25,2.6849]
[1736457060277,2.6841,186.31,186.25,2.6849]
[1736457060477,1.5422,186.32,186.25,2.6849]
[1736457061279,1.5422,186.32,186.22,20.02047094]
[1736457061974,2.684,186.32,186.27,2.6845]
[1736457062685,12.5098108,186.35,186.27,2.6845]
[1736457062981,13.5960108,186.35,186.25,20.02047094]
[1736457063171,9.3929108,186.35,186.28,20.02047094]
[1736457063569,26.18678719,186.38,186.28,20.02047094]
[1736457063782,2.6827,186.4,186.34,2.6836]
[1736457063980,2.6827,186.4,186.31,20.02047094]
[1736457064182,187.9242353,186.41,186.28,20.02047094]
[1736457064383,2.6834,186.36,186.3,2.684]
[1736457064678,187.9242353,186.41,186.3,2.684]
[1736457064874,2.6835,186.35,186.3,2.684]
[1736457065075,20.02047094,186.36,186.22,20.02047094]
[1736457065285,3.1025,186.34,186.19,20.02047094]
[1736457065473,2.6843,186.3,186.19,20.02047094]
[1736457065875,21.66907094,186.33,186.23,2.6851]
[1736457066076,21.66907094,186.33,186.16,25.66047094]
[1736457067677,21.66907094,186.33,186.16,20.02047094]
[1736457068187,2.6844,186.28,186.23,2.6851]
[1736457068379,1.6486,186.33,186.19,20.02047094]
[1736457068675,2.6843,186.29,186.23,2.685]
[1736457068878,1.6486,186.33,186.19,20.02047094]
[1736457069387,1.6486,186.33,186.24,2.6849]
[1736457069885,1.6486,186.33,186.22,20.02047094]
[1736457070186,3.1025,186.34,186.25,20.02047094]
[1736457071180,148.99738613,186.4,186.31,20.02047094]
[1736457071387,89.39843167,186.41,186.31,20.02047094]
[1736457071781,2.6827,186.4,186.34,2.6834]
[1736457072286,2.6832,186.37,186.32,2.6838]
[1736457072491,5.64,186.38,186.25,20.02047094]
[1736457072688,2.9984,186.36,186.21,20.02047094]
[1736457072987,2.9984,186.36,186.24,20.02047094]
[1736457073380,2.6834,186.35,186.24,20.02047094]
[1736457073581,2.9984,186.36,186.21,20.02047094]
[1736457073887,2.6839,186.32,186.27,2.6844]
[1736457074083,2.9984,186.36,186.21,20.02047094]
[1736457074384,2.6837,186.33,186.28,2.6843]
[1736457074580,2.9984,186.36,186.21,20.02047094]
[1736457074783,2.9984,186.36,186.26,20.02047094]
[1736457075181,2.683,186.38,186.26,20.02047094]
[1736457076287,5.64,186.4,186.26,20.02047094]
[1736457076787,2.6833,186.36,186.31,2.6839]
[1736457079090,5.64,186.4,186.26,20.02047094]
[1736457079388,3.0825,186.41,186.29,20.02047094]
[1736457079883,2.6831,186.38,186.32,2.6837]
[1736457080088,2.6831,186.38,186.29,20.02047094]
[1736457080288,2.6832,186.37,186.32,2.6838]
[1736457080981,2.6834,186.36,186.3,2.684]
[1736457081289,2.6834,186.36,186.26,20.02047094]
[1736457081489,20.02047094,186.39,186.21,20.02047094]
[1736457081687,20.02047094,186.39,186.24,20.02047094]
[1736457082095,106.54832545,186.41,186.27,20.02047094]
[1736457082288,2.6833,186.37,186.31,2.684]
[1736457082483,20.02047094,186.39,186.24,20.02047094]
[1736457083187,2.684,186.31,186.21,20.02047094]
[1736457083383,20.02047094,186.36,186.21,20.02047094]
[1736457084288,20.02047094,186.33,186.23,2.6851]
[1736457084591,10.1696,186.32,186.18,20.02047094]
[1736457084787,2.6841,186.31,186.26,2.6846]
[1736457085288,2.6842,186.3,186.26,2.6846]
[1736457085488,2.6842,186.3,186.25,2.6848]
[1736457085684,2.6842,186.3,186.21,20.02047094]
[1736457087193,2.6842,186.3,186.26,2.6847]
[1736457087493,2.6845,186.28,186.18,20.02047094]
[1736457087692,10.1696,186.32,186.18,20.02047094]
[1736457087883,4.5496,186.32,186.18,20.02047094]
[1736457088091,2.6836,186.35,186.27,20.02047094]
[1736457088287,4.8734,186.38,186.27,20.02047094]
[1736457088791,3.2257,186.38,186.3,20.02047094]
[1736457089086,89.26950721,186.39,186.3,20.02047094]
[1736457089291,10.4934,186.44,186.3,20.02047094]
[1736457089492,2.6826,186.41,186.3,20.02047094]
[1736457090287,4.8734,186.44,186.3,20.02047094]
[1736457090893,2.6826,186.41,186.36,2.6833]
[1736457091689,2.6828,186.4,186.34,2.6835]
[1736457091892,20.02047094,186.43,186.25,28.9701359]
[1736457092089,20.02047094,186.4,186.25,28.9701359]
[1736457092285,20.02047094,186.4,186.24,20.02047094]
[1736457092492,2.6835,186.35,186.29,2.6841]
[1736457092690,5.62,186.37,186.22,7.24253397]
[1736457092989,2.6839,186.32,186.27,2.6844]
[1736457095498,2.6839,186.32,186.22,20.02047094]
[1736457095698,2.6839,186.32,186.28,2.6844]
[1736457097490,1.5925,186.34,186.22,20.02047094]
[1736457097695,1.5925,186.34,186.25,20.02047094]
[1736457098192,1.5076,186.35,186.25,20.02047094]
[1736457098600,1.5076,186.35,186.31,2.6839]
[1736457098796,1.5076,186.35,186.25,20.02047094]
[1736457099493,1.5936,186.41,186.28,20.02047094]
[1736457099690,8.7826,186.41,186.28,20.02047094]
[1736457100299,3.1626,186.41,186.28,20.02047094]
[1736457101000,3.1626,186.41,186.31,20.02047094]
[1736457101594,1.569,186.41,186.37,2.6831]
[1736457101797,4.2642,186.42,186.34,20.02047094]
[1736457101798,1.5817,186.42,186.34,20.02047094]
[1736457102003,9.35366823,186.45,186.42,2.6823]
[1736457102592,2.6818,186.47,186.42,2.6823]
[1736457104099,1.5369,186.48,186.42,2.6823]
[1736457104299,2.6819,186.46,186.42,2.6823]
[1736457105904,1.5369,186.48,186.33,5.62]
[1736457105905,1.5369,186.48,186.45,2.682]
[1736457106294,1.5369,186.48,186.4,20.02047094]
[1736457106500,1.5369,186.48,186.44,2.6821]
[1736457106696,1.5369,186.48,186.4,20.02047094]
[1736457106896,1.5369,186.48,186.37,20.02047094]
[1736457107502,1.5369,186.48,186.41,2.6824]
[1736457108203,2.6819,186.46,186.41,2.6824]
[1736457108601,1.5369,186.48,186.37,20.02047094]
[1736457108800,4.2185,186.48,186.43,2.6822]
[1736457109509,1.5369,186.48,186.34,20.02047094]
[1736457110108,2.6822,186.44,186.38,2.6829]
[1736457110502,2.6822,186.44,186.39,2.6828]
[1736457111102,2.6818,186.46,186.41,2.6825]
[1736457112307,2.6818,186.46,186.42,2.6824]
[1736457112712,2.6817,186.47,186.43,2.6822]
[1736457112907,1.5369,186.48,186.37,20.02047094]
[1736457114005,1.5369,186.48,186.44,2.682]
[1736457114609,4.2185,186.48,186.44,2.682]
[1736457115209,2.6817,186.47,186.43,2.6822]
[1736457117201,2.6817,186.47,186.37,20.02047094]
[1736457117202,2.6817,186.47,186.4,2.6827]
[1736457117405,2.6817,186.47,186.37,20.02047094]
[1736457118305,2.6817,186.47,186.42,2.6823]
[1736457119309,2.6822,186.44,186.4,2.6827]
[1736457119514,1.5369,186.48,186.34,20.02047094]
[1736457119815,5.62,186.47,186.34,20.02047094]
[1736457120016,2.6824,186.43,186.38,2.6829]
[1736457120410,5.62,186.47,186.29,28.673219]
[1736457120611,20.02047094,186.43,186.28,20.02047094]
[1736457121005,9.3500333,186.46,186.34,20.02047094]
[1736457121410,9.3500333,186.46,186.38,12.43358694]
[1736457121617,5.62,186.47,186.38,12.43358694]
[1736457122012,2.6821,186.44,186.4,2.6827]
[1736457122619,2.682,186.46,186.41,2.6824]
[1736457122917,3.2694,186.52,186.41,12.43358694]
[1736457123320,3.2694,186.52,186.44,2.682]
[1736457123321,2.6814,186.49,186.44,2.682]
[1736457123522,12.43358694,186.51,186.44,2.682]
[1736457123720,12.43358694,186.51,186.39,12.43358694]
[1736457124417,2.6814,186.49,186.44,2.6821]
[1736457124819,3.2694,186.52,186.44,2.6821]
[1736457125018,2.6816,186.48,186.44,2.6821]
[1736457126015,2.6816,186.48,186.43,2.6822]
[1736457126215,2.6816,186.48,186.39,12.43358694]
[1736457127210,2.6816,186.48,186.44,2.6821]
[1736457127519,9.34340553,186.56,186.45,12.43358694]
[1736457127720,9.34340553,186.56,186.49,2.6814]
[1736457128112,3.2065,186.58,186.49,2.6814]
[1736457128513,3.2065,186.58,186.45,12.43358694]
[1736457128720,12.43358694,186.53,186.42,12.43358694]